fUST/lending_fUST_20240802
["ID","MTS","AMOUNT","RATE_DAILY","PERIOD"]
[333829056,1722535841779,-500.0,0.00013698,2]
[333829057,1722535841789,-500.0,0.00013698,2]
[333829058,1722535841800,-500.0,0.00013698,2]
[333829059,1722535841810,-500.0,0.00013698,2]
[333829060,1722535841819,-500.0,0.00013698,2]
[333829061,1722535841830,-500.0,0.00013698,2]
[333829062,1722535841840,-500.0,0.00013698,2]
[333829063,1722535841850,-500.0,0.00013698,2]
[333829064,1722535841863,-191.52695787,0.00013698,2]
[333829065,1722535841874,-500.0,0.00013698,2]
[333829066,1722535841883,-500.0,0.00013698,2]
[333829067,1722535841894,-500.0,0.00013698,2]
[333829068,1722535841904,-458.75395012,0.00013698,2]
[333829069,1722535841915,-500.0,0.00013698,2]
[333829070,1722535841926,-1558.06,0.00013698,2]
[333829071,1722535841936,-500.0,0.00013698,2]
[333829072,1722535841946,-519.26,0.00013698,2]
[333829073,1722535841955,-500.0,0.00013698,2]
[333829074,1722535841966,-500.0,0.00013698,2]
[333829075,1722535841976,-500.0,0.00013698,2]
[333829076,1722535841987,-500.0,0.00013698,2]
[333829077,1722535841997,-1930.57,0.00013698,2]
[333829078,1722535842006,-500.0,0.00013698,2]
[333829079,1722535842016,-500.0,0.00013698,2]
[333829080,1722535842025,-524.57847324,0.00013698,2]
[333829081,1722535842035,-500.0,0.00013698,2]
[333829082,1722535842045,-518.17602593,0.00013698,2]
[333829083,1722535842056,-500.0,0.00013698,2]
[333829084,1722535842067,-627.72,0.00013698,2]
[333829085,1722535842077,-500.0,0.00013698,2]
[333829086,1722535842092,-500.0,0.00013698,2]
[333829087,1722535842108,-500.0,0.00013698,2]
[333829088,1722535842126,-500.0,0.00013698,2]
[333829089,1722535842141,-500.0,0.00013698,2]
[333829090,1722535842151,-500.0,0.00013698,2]
[333829091,1722535842161,-500.0,0.00013698,2]
[333829092,1722535842172,-500.0,0.00013698,2]
[333829093,1722535842182,-500.0,0.00013698,2]
[333829094,1722535842192,-500.0,0.00013698,2]
[333829095,1722535842202,-500.0,0.00013698,2]
[333829096,1722535842212,-500.0,0.00013698,2]
[333829097,1722535842223,-500.0,0.00013698,2]
[333829098,1722535842234,-500.0,0.00013698,2]
[333829099,1722535842244,-638.6,0.00013698,2]
[333829100,1722535842254,-500.0,0.00013698,2]
[333829101,1722535842265,-500.0,0.00013698,2]
[333829102,1722535842275,-500.0,0.00013698,2]
[333829103,1722535842285,-500.0,0.00013698,2]
[333829104,1722535842296,-500.0,0.00013698,2]
[333829105,1722535842307,-500.0,0.00013698,2]
[333829106,1722535842317,-500.0,0.00013698,2]
[333829107,1722535842333,-500.0,0.00013698,2]
[333829108,1722535842343,-502.23490079,0.00013698,2]
[333829109,1722535842354,-500.0,0.00013698,2]
[333829110,1722535842363,-1329.86,0.00013698,2]
[333829111,1722535842373,-500.0,0.00013698,2]
[333829112,1722535842383,-500.0,0.00013698,2]
[333829113,1722535842392,-500.0,0.00013698,2]
[333829114,1722535842403,-500.0,0.00013698,2]
[333829115,1722535842413,-500.0,0.00013698,2]
[333829116,1722535842423,-500.0,0.00013698,2]
[333829117,1722535842433,-500.0,0.00013698,2]
[333829118,1722535842443,-500.0,0.00013698,2]
[333829119,1722535842453,-500.0,0.00013698,2]
[333829120,1722535842463,-500.0,0.00013698,2]
[333829121,1722535842474,-963.1,0.00013698,2]
[333829122,1722535842485,-500.0,0.00013698,2]
[333829123,1722535842496,-500.0,0.00013698,2]
[333829124,1722535842507,-500.0,0.00013698,2]
[333829125,1722535842518,-534.96,0.00013698,2]
[333829126,1722535842531,-500.0,0.00013698,2]
[333829127,1722535842541,-500.0,0.00013698,2]
[333829128,1722535842551,-500.0,0.00013698,2]
[333829129,1722535842561,-500.0,0.00013698,2]
[333829131,1722535842574,-510.98180364,0.00013698,2]
[333829132,1722535842585,-500.0,0.00013698,2]
[333829133,1722535842595,-500.0,0.00013698,2]
[333829134,1722535842605,-500.0,0.00013698,2]
[333829135,1722535842615,-500.0,0.00013698,2]
[333829137,1722535842638,-500.0,0.00013698,2]
[333829139,1722535842649,-500.0,0.00013698,2]
[333829141,1722535842659,-500.0,0.00013698,2]
[333829143,1722535842672,-502.21731606,0.00013698,2]
[333829145,1722535842683,-500.0,0.00013698,2]
[333829147,1722535842694,-500.0,0.00013698,2]
[333829148,1722535842706,-500.0,0.00013698,2]
[333829149,1722535842716,-500.0,0.00013698,2]
[333829150,1722535842726,-354.36871326,0.00013698,2]
[333829151,1722535842737,-500.0,0.00013698,2]
[333829152,1722535842747,-501.36699702,0.00013698,2]
[333829153,1722535842757,-277.77838188,0.00013698,2]
[333829155,1722535842766,-224.30701069,0.00013698,2]
[333829158,1722535842785,-275.69298931,0.00013698,2]
[333829159,1722535842795,-500.0,0.00013698,2]
[333829160,1722535842805,-500.0,0.00013698,2]
[333829161,1722535842816,-500.0,0.00013698,2]
[333829162,1722535842826,-500.0,0.00013698,2]
[333829163,1722535842835,-500.0,0.00013698,2]
[333829164,1722535842845,-500.0,0.00013698,2]
[333829165,1722535842855,-500.0,0.00013698,2]
[333829166,1722535842866,-500.0,0.00013698,2]
[333829168,1722535842877,-500.0,0.00013698,2]
[333829170,1722535842887,-500.0,0.00013698,2]
[333829172,1722535842897,-844.88,0.00013698,2]
[333829174,1722535842907,-502.29824516,0.00013698,2]
[333829178,1722535842921,-826.2,0.00013698,2]
[333829181,1722535842931,-500.0,0.00013698,2]
[333829183,1722535842941,-226.10713722,0.00013698,2]
[333829184,1722535842954,-252.036,0.00013698,2]
[333829197,1722535843532,-21.85686278,0.00013698,2]
[333829199,1722535843543,-500.0,0.00013698,2]
[333829200,1722535843554,-500.0,0.00013698,2]
[333829201,1722535843564,-500.0,0.00013698,2]
[333829202,1722535843575,-500.0,0.00013698,2]
[333829203,1722535843585,-500.0,0.00013698,2]
[333829204,1722535843595,-500.0,0.00013698,2]
[333829206,1722535843606,-133.99313722,0.00013698,2]
[333829336,1722535847589,-300.78721,0.00013698,2]
[333829338,1722535847603,-65.21965278,0.00013698,2]
[333829340,1722535847613,-443.27345123,0.00013698,2]
[333829341,1722535847630,-500.0,0.00013698,2]
[333829342,1722535847640,-500.0,0.00013698,2]
[333829343,1722535847650,-579.54,0.00013698,2]
[333829344,1722535847660,-503.59309508,0.00013698,2]
[333829345,1722535847670,-500.0,0.00013698,2]
[333829346,1722535847680,-491.49400525,0.00013698,2]
[333829347,1722535847689,-500.0,0.00013698,2]
[333829348,1722535847698,-753.70021,0.00013699,2]
[333829349,1722535847709,-230.79611398,0.000137,2]
[333829350,1722535847718,-509.07,0.000137,2]
[333829351,1722535847728,-500.0,0.000138,2]
[333829352,1722535847738,-500.0,0.000139,2]
[333829353,1722535847749,-2351.39930258,0.00013962,2]
[333829354,1722535847758,-500.0,0.00013971,2]
[333829355,1722535847768,-500.0,0.00013971,2]
[333829356,1722535847778,-500.0,0.00013971,2]
[333829357,1722535847788,-173.22283092,0.00013972,2]
[333829358,1722535847798,-500.0,0.00013972,2]
[333829359,1722535847808,-500.0,0.00013972,2]
[333829360,1722535847818,-544.46,0.00013972,2]
[333829361,1722535847828,-500.0,0.00013972,2]
[333829362,1722535847838,-542.61,0.00013972,2]
[333829363,1722535847848,-500.0,0.00013972,2]
[333829364,1722535847858,-500.0,0.00013972,2]
[333829365,1722535847868,-500.0,0.00013972,2]
[333829366,1722535847885,-500.0,0.00013972,2]
[333829367,1722535847895,-500.0,0.00013972,2]
[333829368,1722535847905,-500.0,0.00013972,2]
[333829369,1722535847914,-500.0,0.00013972,2]
[333829370,1722535847925,-500.0,0.00013972,2]
[333829371,1722535847935,-500.0,0.00013972,2]
[333829372,1722535847945,-500.0,0.00013972,2]
[333829373,1722535847955,-500.0,0.00013972,2]
[333829374,1722535847965,-500.0,0.00013972,2]
[333829375,1722535847975,-500.0,0.00013972,2]
[333829376,1722535847985,-500.0,0.00013972,2]
[333829377,1722535847994,-500.0,0.00013972,2]
[333829378,1722535848004,-511.58829112,0.00013972,2]
[333829379,1722535848014,-500.0,0.00013972,2]
[333829380,1722535848024,-500.0,0.00013972,2]
[333829381,1722535848034,-1025.63,0.00013972,2]
[333829382,1722535848044,-1387.27,0.00013972,2]
[333829383,1722535848054,-246.93515488,0.00013972,2]
[333829384,1722535848063,-500.0,0.00013972,2]
[333829385,1722535848073,-500.0,0.00013972,2]
[333829386,1722535848083,-664.77,0.00013972,2]
[333829387,1722535848093,-500.0,0.00013972,2]
[333829388,1722535848103,-500.0,0.00013972,2]
[333829389,1722535848113,-500.0,0.00013972,2]
[333829390,1722535848129,-500.0,0.00013972,2]
[333829391,1722535848139,-500.0,0.00013972,2]
[333829392,1722535848148,-500.0,0.00013972,2]
[333829393,1722535848158,-500.0,0.00013972,2]
[333829394,1722535848168,-500.0,0.00013972,2]
[333829395,1722535848178,-500.0,0.00013972,2]
[333829396,1722535848187,-500.0,0.00013972,2]
[333829397,1722535848199,-1558.06,0.00013972,2]
[333829398,1722535848209,-519.26,0.00013972,2]
[333829399,1722535848218,-1930.57,0.00013972,2]
[333829400,1722535848229,-500.0,0.00013972,2]
[333829401,1722535848240,-500.0,0.00013972,2]
[333829402,1722535848250,-627.72,0.00013972,2]
[333829403,1722535848259,-500.0,0.00013972,2]
[333829404,1722535848269,-500.0,0.00013972,2]
[333829405,1722535848279,-500.0,0.00013972,2]
[333829406,1722535848397,-500.0,0.00013972,2]
[333829407,1722535848407,-500.0,0.00013972,2]
[333829408,1722535848418,-500.0,0.00013972,2]
[333829409,1722535848427,-500.0,0.00013972,2]
[333829410,1722535848437,-638.6,0.00013972,2]
[333829411,1722535848446,-500.0,0.00013972,2]
[333829412,1722535848456,-500.0,0.00013972,2]
[333829413,1722535848465,-500.0,0.00013972,2]
[333829414,1722535848475,-500.0,0.00013972,2]
[333829415,1722535848485,-500.0,0.00013972,2]
[333829416,1722535848495,-500.0,0.00013972,2]
[333829417,1722535848504,-500.0,0.00013972,2]
[333829418,1722535848514,-1329.86,0.00013972,2]
[333829419,1722535848525,-500.0,0.00013972,2]
[333829420,1722535848536,-500.0,0.00013972,2]
[333829421,1722535848546,-450.0,0.00013972,2]
[333829422,1722535848556,-166.66,0.00013972,2]
[333829423,1722535848566,-500.0,0.00013972,2]
[333829424,1722535848576,-500.0,0.00013972,2]
[333829425,1722535848587,-963.1,0.00013972,2]
[333829426,1722535848598,-500.0,0.00013972,2]
[333829427,1722535848609,-500.0,0.00013972,2]
[333829428,1722535848626,-503.70080589,0.00013972,2]
[333829429,1722535848636,-534.96,0.00013972,2]
[333829430,1722535848646,-500.0,0.00013972,2]
[333829431,1722535848656,-175.22417968,0.00013972,2]
[333829432,1722535848666,-500.0,0.00013972,2]
[333829433,1722535848677,-500.0,0.00013972,2]
[333829434,1722535848687,-500.0,0.00013972,2]
[333829435,1722535848698,-500.0,0.00013972,2]
[333829436,1722535848708,-500.0,0.00013972,2]
[333829437,1722535848718,-500.0,0.00013972,2]
[333829438,1722535848728,-500.0,0.00013972,2]
[333829439,1722535848738,-500.0,0.00013972,2]
[333829440,1722535848748,-500.0,0.00013972,2]
[333829441,1722535848758,-500.0,0.00013972,2]
[333829442,1722535848768,-500.0,0.00013972,2]
[333829443,1722535848778,-500.0,0.00013972,2]
[333829444,1722535848788,-500.0,0.00013972,2]
[333829445,1722535848799,-844.88,0.00013972,2]
[333829446,1722535848808,-826.2,0.00013972,2]
[333829447,1722535848818,-500.0,0.00013972,2]
[333829448,1722535848828,-500.0,0.00013972,2]
[333829449,1722535848838,-500.0,0.00013972,2]
[333829450,1722535848848,-506.68472887,0.00013972,2]
[333829451,1722535848857,-500.0,0.00013972,2]
[333829452,1722535848867,-500.0,0.00013972,2]
[333829453,1722535848888,-579.54,0.00013972,2]
[333829454,1722535848898,-500.0,0.00013972,2]
[333829455,1722535848908,-500.0,0.00013972,2]
[333829456,1722535848918,-150.112233,0.00014,2]
[333829457,1722535848930,-191.43645482,0.00014101,2]
[333829458,1722535848940,-2000.0,0.00014146,2]
[333829459,1722535848950,-500.0,0.00014235,2]
[333829460,1722535848960,-1175.69965129,0.00014236,2]
[333829461,1722535848970,-500.0,0.00014245,2]
[333829462,1722535848980,-500.0,0.00014246,2]
[333829463,1722535848991,-500.0,0.00014246,2]
[333829464,1722535849001,-500.0,0.00014246,2]
[333829465,1722535849011,-500.0,0.00014246,2]
[333829466,1722535849022,-500.0,0.00014246,2]
[333829467,1722535849032,-500.0,0.00014246,2]
[333829468,1722535849042,-500.0,0.00014246,2]
[333829469,1722535849052,-500.0,0.00014246,2]
[333829470,1722535849061,-500.0,0.00014246,2]
[333829471,1722535849070,-500.0,0.00014246,2]
[333829472,1722535849080,-434.03124169,0.00014246,2]
[333829473,1722535849090,-500.0,0.00014246,2]
[333829474,1722535849101,-500.0,0.00014246,2]
[333829475,1722535849111,-500.0,0.00014246,2]
[333829476,1722535849124,-500.0,0.00014246,2]
[333829477,1722535849136,-1025.63,0.00014246,2]
[333829478,1722535849146,-1387.27,0.00014246,2]
[333829479,1722535849155,-664.77,0.00014246,2]
[333829480,1722535849165,-633.07297797,0.00014246,2]
[333829481,1722535849174,-500.0,0.00014246,2]
[333829482,1722535849184,-500.0,0.00014246,2]
[333829483,1722535849194,-500.0,0.00014246,2]
[333829484,1722535849203,-500.0,0.00014246,2]
[333829485,1722535849213,-1558.06,0.00014246,2]
[333829486,1722535849223,-519.26,0.00014246,2]
[333829487,1722535849232,-1930.57,0.00014246,2]
[333829488,1722535849242,-500.0,0.00014246,2]
[333829489,1722535849252,-627.72,0.00014246,2]
[333829490,1722535849262,-500.0,0.00014246,2]
[333829491,1722535849272,-500.0,0.00014246,2]
[333829492,1722535849282,-500.0,0.00014246,2]
[333829493,1722535849292,-500.0,0.00014246,2]
[333829494,1722535849301,-638.6,0.00014246,2]
[333829495,1722535849311,-500.0,0.00014246,2]
[333829496,1722535849321,-500.0,0.00014246,2]
[333829497,1722535849331,-1329.86,0.00014246,2]
[333829498,1722535849341,-343.02,0.00014246,2]
[333829499,1722535849351,-500.0,0.00014246,2]
[333829500,1722535849362,-559.5742862,0.00014246,2]
[333829501,1722535849375,-963.1,0.00014246,2]
[333829502,1722535849389,-500.0,0.00014246,2]
[333829503,1722535849400,-500.0,0.00014246,2]
[333829504,1722535849409,-534.96,0.00014246,2]
[333829505,1722535849418,-500.0,0.00014246,2]
[333829506,1722535849428,-500.0,0.00014246,2]
[333829507,1722535849438,-500.0,0.00014246,2]
[333829508,1722535849448,-186.77649802,0.00014246,2]
[333829509,1722535849457,-500.0,0.00014246,2]
[333829510,1722535849467,-500.0,0.00014246,2]
[333829511,1722535849477,-500.0,0.00014246,2]
[333829512,1722535849489,-500.0,0.00014246,2]
[333829513,1722535849498,-500.0,0.00014246,2]
[333829514,1722535849508,-500.0,0.00014246,2]
[333829515,1722535849517,-844.88,0.00014246,2]
[333829516,1722535849527,-826.2,0.00014246,2]
[333829517,1722535849544,-500.0,0.00014246,2]
[333829518,1722535849554,-500.0,0.00014246,2]
[333829519,1722535849563,-500.0,0.00014246,2]
[333829520,1722535849573,-579.54,0.00014246,2]
[333829521,1722535849583,-500.0,0.00014246,2]
[333829522,1722535849594,-500.0,0.00014246,2]
[333829523,1722535849604,-598.525715,0.00014247,2]
[333829524,1722535849614,-425.7213,0.00014314,2]
[333829525,1722535849635,-500.0,0.0001452,2]
[333829526,1722535849644,-221.9,0.0001452,2]
[333829527,1722535849653,-500.0,0.0001452,2]
[333829528,1722535849663,-500.0,0.0001452,2]
[333829529,1722535849673,-500.0,0.0001452,2]
[333829530,1722535849683,-500.0,0.0001452,2]
[333829531,1722535849692,-500.0,0.0001452,2]
[333829532,1722535849702,-500.0,0.0001452,2]
[333829533,1722535849712,-500.0,0.0001452,2]
[333829534,1722535849722,-500.0,0.0001452,2]
[333829535,1722535849733,-1025.63,0.0001452,2]
[333829536,1722535849743,-1387.27,0.0001452,2]
[333829537,1722535849753,-664.77,0.0001452,2]
[333829538,1722535849762,-500.0,0.0001452,2]
[333829539,1722535849773,-545.59531931,0.0001452,2]
[333829540,1722535849782,-500.0,0.0001452,2]
[333829541,1722535849792,-500.0,0.0001452,2]
[333829542,1722535849801,-1558.06,0.0001452,2]
[333829543,1722535849810,-519.26,0.0001452,2]
[333829544,1722535849820,-1930.57,0.0001452,2]
[333829545,1722535849829,-500.0,0.0001452,2]
[333829546,1722535849840,-627.72,0.0001452,2]
[333829547,1722535849850,-500.0,0.0001452,2]
[333829548,1722535849860,-500.0,0.0001452,2]
[333829549,1722535849869,-500.0,0.0001452,2]
[333829550,1722535849887,-500.0,0.0001452,2]
[333829551,1722535849896,-638.6,0.0001452,2]
[333829552,1722535849906,-500.0,0.0001452,2]
[333829553,1722535849916,-500.0,0.0001452,2]
[333829554,1722535849925,-1329.86,0.0001452,2]
[333829555,1722535849934,-500.0,0.0001452,2]
[333829556,1722535849944,-963.1,0.0001452,2]
[333829557,1722535849953,-192.38290809,0.0001452,2]
[333829558,1722535849963,-500.0,0.0001452,2]
[333829559,1722535849972,-534.96,0.0001452,2]
[333829560,1722535849982,-500.0,0.0001452,2]
[333829561,1722535849993,-500.0,0.0001452,2]
[333829562,1722535850003,-500.0,0.0001452,2]
[333829563,1722535850012,-500.0,0.0001452,2]
[333829564,1722535850022,-584.03504845,0.0001452,2]
[333829565,1722535850032,-500.0,0.0001452,2]
[333829566,1722535850041,-500.0,0.0001452,2]
[333829567,1722535850052,-500.0,0.0001452,2]
[333829568,1722535850062,-500.0,0.0001452,2]
[333829569,1722535850072,-844.88,0.0001452,2]
[333829570,1722535850082,-826.2,0.0001452,2]
[333829571,1722535850092,-500.0,0.0001452,2]
[333829572,1722535850101,-500.0,0.0001452,2]
[333829573,1722535850111,-500.0,0.0001452,2]
[333829574,1722535850127,-579.54,0.0001452,2]
[333829575,1722535850136,-500.0,0.0001452,2]
[333829576,1722535850145,-191.43645482,0.00014604,2]
[333829577,1722535850155,-500.0,0.00014679,2]
[333829578,1722535850163,-1175.69965129,0.0001468,2]
[333829579,1722535850173,-816.07415827,0.0001469,2]
[333829580,1722535850182,-194.52699436,0.0001469,2]
[333829581,1722535850192,-473.887496,0.0001469,2]
[333829582,1722535850201,-1175.69965129,0.00014784,2]
[333829583,1722535850210,-500.0,0.00014792,2]
[333829584,1722535850219,-591.3233633,0.00014792,2]
[333829585,1722535850228,-500.0,0.00014792,2]
[333829586,1722535850238,-500.0,0.00014792,2]
[333829587,1722535850248,-500.0,0.00014792,2]
[333829588,1722535850258,-500.0,0.00014792,2]
[333829589,1722535850267,-500.0,0.00014792,2]
[333829590,1722535850276,-500.0,0.00014792,2]
[333829591,1722535850285,-500.0,0.00014792,2]
[333829592,1722535850295,-500.0,0.00014792,2]
[333829593,1722535850306,-500.0,0.00014792,2]
[333829594,1722535850316,-500.0,0.00014792,2]
[333829595,1722535850325,-500.0,0.00014794,2]
[333829596,1722535850335,-500.0,0.00014794,2]
[333829597,1722535850344,-500.0,0.00014794,2]
[333829598,1722535850354,-500.0,0.00014794,2]
[333829599,1722535850363,-500.0,0.00014794,2]
[333829600,1722535850382,-500.0,0.00014794,2]
[333829601,1722535850391,-500.0,0.00014794,2]
[333829602,1722535850401,-500.0,0.00014794,2]
[333829603,1722535850410,-500.0,0.00014794,2]
[333829604,1722535850420,-1025.63,0.00014794,2]
[333829605,1722535850429,-1387.27,0.00014794,2]
[333829606,1722535850438,-664.77,0.00014794,2]
[333829607,1722535850448,-500.0,0.00014794,2]
[333829608,1722535850457,-500.0,0.00014794,2]
[333829609,1722535850466,-500.0,0.00014794,2]
[333829610,1722535850476,-1558.06,0.00014794,2]
[333829611,1722535850488,-519.26,0.00014794,2]
[333829612,1722535850499,-1930.57,0.00014794,2]
[333829613,1722535850509,-500.0,0.00014794,2]
[333829614,1722535850518,-627.72,0.00014794,2]
[333829615,1722535850531,-500.0,0.00014794,2]
[333829616,1722535850542,-500.0,0.00014794,2]
[333829617,1722535850552,-500.0,0.00014794,2]
[333829618,1722535850561,-500.0,0.00014794,2]
[333829619,1722535850571,-638.6,0.00014794,2]
[333829620,1722535850584,-500.0,0.00014794,2]
[333829621,1722535850593,-500.0,0.00014794,2]
[333829622,1722535850603,-1329.86,0.00014794,2]
[333829623,1722535850612,-500.0,0.00014794,2]
[333829624,1722535850627,-963.1,0.00014794,2]
[333829625,1722535850637,-500.0,0.00014794,2]
[333829626,1722535850647,-534.96,0.00014794,2]
[333829627,1722535850656,-500.0,0.00014794,2]
[333829628,1722535850665,-500.0,0.00014794,2]
[333829629,1722535850674,-500.0,0.00014794,2]
[333829630,1722535850683,-500.0,0.00014794,2]
[333829631,1722535850692,-173.2921407,0.00014794,2]
[333829632,1722535850701,-500.0,0.00014794,2]
[333829633,1722535850711,-500.0,0.00014794,2]
[333829634,1722535850721,-500.0,0.00014794,2]
[333829635,1722535850730,-844.88,0.00014794,2]
[333829636,1722535850740,-826.2,0.00014794,2]
[333829637,1722535850749,-500.0,0.00014794,2]
[333829638,1722535850759,-500.0,0.00014794,2]
[333829639,1722535850768,-612.19201871,0.00014794,2]
[333829640,1722535850778,-579.54,0.00014794,2]
[333829641,1722535850788,-500.0,0.00014794,2]
[333829642,1722535850797,-367.7699373,0.00014853,2]
[333829643,1722535850807,-5311.63056584,0.00014865,2]
[333829644,1722535850816,-294.1746601,0.00015041,2]
[333829645,1722535850827,-1175.69965129,0.00015058,2]
[333829646,1722535850836,-420.0,0.00015066,2]
[333829647,1722535850847,-396.3522939,0.00015068,2]
[333829648,1722535850856,-500.0,0.00015068,2]
[333829649,1722535850866,-500.0,0.00015068,2]
[333829650,1722535850883,-500.0,0.00015068,2]
[333829651,1722535850894,-500.0,0.00015068,2]
[333829652,1722535850904,-500.0,0.00015068,2]
[333829653,1722535850914,-500.0,0.00015068,2]
[333829654,1722535850923,-500.0,0.00015068,2]
[333829655,1722535850932,-500.0,0.00015068,2]
[333829656,1722535850942,-1025.63,0.00015068,2]
[333829657,1722535850951,-1387.27,0.00015068,2]
[333829658,1722535850960,-664.77,0.00015068,2]
[333829659,1722535850969,-500.0,0.00015068,2]
[333829660,1722535851065,-500.0,0.00015068,2]
[333829661,1722535851075,-500.0,0.00015068,2]
[333829662,1722535851084,-1558.06,0.00015068,2]
[333829663,1722535851093,-519.26,0.00015068,2]
[333829664,1722535851102,-1930.57,0.00015068,2]
[333829665,1722535851112,-500.0,0.00015068,2]
[333829666,1722535851126,-627.72,0.00015068,2]
[333829667,1722535851136,-500.0,0.00015068,2]
[333829668,1722535851145,-500.0,0.00015068,2]
[333829669,1722535851155,-500.0,0.00015068,2]
[333829670,1722535851165,-500.0,0.00015068,2]
[333829671,1722535851174,-638.6,0.00015068,2]
[333829672,1722535851184,-500.0,0.00015068,2]
[333829673,1722535851194,-500.0,0.00015068,2]
[333829674,1722535851204,-1329.86,0.00015068,2]
[333829675,1722535851214,-500.0,0.00015068,2]
[333829676,1722535851225,-963.1,0.00015068,2]
[333829677,1722535851235,-500.0,0.00015068,2]
[333829678,1722535851244,-534.96,0.00015068,2]
[333829679,1722535851253,-500.0,0.00015068,2]
[333829680,1722535851263,-500.0,0.00015068,2]
[333829681,1722535851272,-500.0,0.00015068,2]
[333829682,1722535851288,-500.0,0.00015068,2]
[333829683,1722535851298,-500.0,0.00015068,2]
[333829684,1722535851308,-500.0,0.00015068,2]
[333829685,1722535851317,-500.0,0.00015068,2]
[333829686,1722535851327,-844.88,0.00015068,2]
[333829687,1722535851336,-826.2,0.00015068,2]
[333829688,1722535851346,-500.0,0.00015068,2]
[333829689,1722535851355,-500.0,0.00015068,2]
[333829690,1722535851366,-579.54,0.00015068,2]
[333829691,1722535851383,-500.0,0.00015068,2]
[333829692,1722535851393,-191.43645482,0.00015106,2]
[333829693,1722535851403,-289.26201708,0.00015212,2]
[333829694,1722535851412,-150.112233,0.000153,2]
[333829695,1722535851422,-554.49924204,0.00015331,2]
[333829696,1722535851434,-1175.69965129,0.00015332,2]
[333829697,1722535851444,-500.0,0.00015342,2]
[333829698,1722535851453,-320.23,0.00015342,2]
[333829699,1722535851463,-500.0,0.00015342,2]
[333829700,1722535851473,-500.0,0.00015342,2]
[333829701,1722535851484,-500.0,0.00015342,2]
[333829702,1722535851494,-500.0,0.00015342,2]
[333829703,1722535851503,-500.0,0.00015342,2]
[333829704,1722535851513,-500.0,0.00015342,2]
[333829705,1722535851523,-1025.63,0.00015342,2]
[333829706,1722535851534,-1387.27,0.00015342,2]
[333829707,1722535851543,-664.77,0.00015342,2]
[333829708,1722535851553,-500.0,0.00015342,2]
[333829709,1722535851562,-500.0,0.00015342,2]
[333829710,1722535851572,-500.0,0.00015342,2]
[333829711,1722535851583,-1558.06,0.00015342,2]
[333829712,1722535851592,-519.26,0.00015342,2]
[333829713,1722535851601,-1930.57,0.00015342,2]
[333829714,1722535851611,-500.0,0.00015342,2]
[333829715,1722535851622,-627.72,0.00015342,2]
[333829716,1722535851636,-500.0,0.00015342,2]
[333829717,1722535851645,-500.0,0.00015342,2]
[333829718,1722535851654,-190.8104801,0.00015342,2]
[333829719,1722535851664,-500.0,0.00015342,2]
[333829720,1722535851674,-638.6,0.00015342,2]